Cogmind - Beta 13 @@@ ROGUE MODE // 2024.04.28 @ 22:06:52 Player: Ehseezed Result: Destroyed self with Rocket Launcher Performance ------------- Evolutions (0) 0 Regions Visited (4) 800 Robots Destroyed (28) 140 Value Destroyed (627) 627 Prototype IDs (0) 0 Alien Tech Used (0) 0 Bonus (0) 0 TOTAL SCORE: 1567 Bonus ------- None Cogmind --------- Core Integrity 0/250 Matter 64/300 Energy 167/170 System Corruption 6% Temperature Cool (0) Movement Walking (120) Location -9/Mines Parts ------- > --- POWER (1) -------- Makeshift Power Source (fused) > --- PROPULSION (2) --- Aluminum Leg Aluminum Leg > --- UTILITY (2) ------ Small Storage Unit Power Shielding > --- WEAPON (2) ------- Flak Cannon Rocket Launcher (fused) > --- INVENTORY (8) ---- Structural Scanner Improved Terrain Scanner Medium Armor Plating Medium Armor Plating Improved Trap Extractor (0/6) Small Laser Peak State ------------ > --- POWER ------------ Makeshift Power Source > --- PROPULSION ------- Light Treads Light Treads > --- UTILITY ---------- Small Storage Unit Improved Trap Extractor > --- WEAPON ----------- Flak Cannon Rocket Launcher > --- INVENTORY -------- Improved Ion Engine Aluminum Leg Aluminum Leg Structural Scanner Power Shielding Medium Armor Plating Medium Armor Plating Small Laser [Rating: 17] Favorites ----------- Power Makeshift Power Source Engine Makeshift Power Source Power Core Light Nuclear Core Propulsion Light Treads Treads Light Treads Leg Aluminum Leg Utility Small Storage Unit Device Improved Trap Extractor Storage Small Storage Unit Protection Core Shielding Weapon Small Laser Energy Gun Small Laser Ballistic Gun Light Assault Rifle Ballistic Cannon Flak Cannon Launcher Rocket Launcher Build | -11 -10 -10 -10 -9 ------- Run | Yrd Mat Min Exi Min Slots Evolved . | . . . . . Power . | . . . . . Propulsion . | . . . . . Utility . | . . . . . Weapon . | . . . . . Parts Attached 26 | 4 9 9 3 1 Power 4 | . 2 1 1 . Engine 3 | . 1 1 1 . Core 1 | . 1 . . . Reactor . | . . . . . Propulsion 7 | 2 1 2 2 . Treads 5 | 2 1 2 . . Leg 2 | . . . 2 . Wheel . | . . . . . Hover . | . . . . . Flight . | . . . . . Utility 7 | . 2 4 . 1 Device 3 | . 1 2 . . Storage 1 | . 1 . . . Processor . | . . . . . Hackware . | . . . . . Protection 3 | . . 2 . 1 Artifact . | . . . . . Weapon 8 | 2 4 2 . . Energy Gun 2 | 1 1 . . . Energy Cannon . | . . . . . Ballistic Gun 2 | 1 1 . . . Ballistic Cannon 2 | . 1 1 . . Launcher 2 | . 1 1 . . Special Weapon . | . . . . . Impact Weapon . | . . . . . Slashing Weapon . | . . . . . Piercing Weapon . | . . . . . Special Melee Weapon . | . . . . . Unidentified Prototypes . | . . . . . Parts Lost 4 | . 1 3 . . Power 1 | . . 1 . . Propulsion 2 | . . 2 . . Utility . | . . . . . Weapon 1 | . 1 . . . Highest Loss Streak 2 | . 1 2 . . To Critical Strikes . | . . . . . Average Slot Usage (%) 98 | . 97 98 100 100 Engine 9 | . 1 12 14 14 Core 4 | . 12 . . . Treads 19 | . 28 27 9 . Leg 8 | . . . 18 28 Device 12 | . 11 10 14 . Storage 13 | . 13 14 14 14 Protection 1 | . . 3 . 14 Energy Gun 5 | . 10 9 . . Ballistic Gun 2 | . 3 7 . . Ballistic Cannon 10 | . 10 4 14 14 Launcher 8 | . 3 6 14 14 Naked Turns . | . . . . . Heaviest Build 25 | 2 17 25 25 20 Greatest Support 40 | 40 40 40 40 20 Greatest Overweight (x) 1 | . . . 1 . Average Overweight (x) . | . . . . . Largest Inventory Capacity 8 | 5 8 8 8 8 Average Capacity 7 | 5 7 8 8 8 Most Carried 8 | 5 8 8 8 6 Average Carried 5 | 3 6 7 5 5 Final Capacity 8 | 5 8 8 8 8 Final Carried 8 | 4 8 8 5 6 Class Distribution -------------------- 100% | Mutant Dominant Class ---------------- Mutant | -10/Materials Mutant | -10/Mines Mutant | -10/Exiles Mutant | -9/Mines Resources | -11 -10 -10 -10 -9 ----------- Run | Yrd Mat Min Exi Min Matter Collected 783 | 202 356 155 56 14 Remotely . | . . . . . Salvage Created 775 | . 420 196 96 63 Parts 55 | . 31 12 8 4 Haulers Intercepted . | . . . . . Recyclers Shooed 1 | . 1 . . . Parts Field Recycled . | . . . . . Retrieved Matter . | . . . . . Parts Self-Destructed . | . . . . . Prevented . | . . . . . Kills | -11 -10 -10 -10 -9 ------- Run | Yrd Mat Min Exi Min Combat Hostiles Destroyed 20 | . 13 6 . 1 Guns 7 | . 4 3 . . Cannons 6 | . 6 . . . AOE 7 | . 3 3 . 1 Classes Destroyed 8 | . 5 2 . 1 Builder 1 | . 1 . . . Tunneler 2 | . . 1 . 1 Recycler 2 | . 2 . . . Watcher 3 | . 3 . . . Swarmer 8 | . 6 2 . . Grunt 9 | . 7 2 . . Brawler 1 | . . . . 1 Sentry 2 | . . 2 . . Best Kill Streak 4 | . 4 3 . 1 Combat Bots Only 4 | . 4 2 . 1 Max Kills in Single Turn 2 | . 2 1 . 1 Gunslinging . | . . . . . Exploded 2 | . 2 1 . 1 Melee . | . . . . . Uniques/NPCs Destroyed . | . . . . . Combat | -11 -10 -10 -10 -9 -------- Run | Yrd Mat Min Exi Min Hostile Shots Fired 112 | . 74 38 . . Missed 36 | . 26 10 . . Damage Taken 1161 | . 640 489 . 32 Core 260 | . 104 124 . 32 Absorbed by Shields . | . . . . . Redirected to Shielding 1 | . . 1 . . Core Remaining (%) 100 | 100 . . . . Volleys Fired 68 | . 51 13 3 1 Largest 2 | . 2 2 2 2 Hottest 77 | . 75 73 77 77 Shots Fired 136 | . 100 26 7 3 Gun 68 | . 48 20 . . Cannon 49 | . 44 . 3 2 Launcher 19 | . 8 6 4 1 Special . | . . . . . Kinetic 63 | . 51 7 3 2 Thermal 54 | . 41 13 . . Explosive 19 | . 8 6 4 1 Electromagnetic . | . . . . . Robot Hit Streak 14 | . 8 14 3 4 Robot Miss Streak 5 | . 5 4 3 4 Penetration Max . | . . . . . Secondary Targets 1 | . . 1 . . Max Gunslinging Chain 1 | . . 1 . . Shots Hit Robots 65 | . 44 16 4 1 Core Hits 49 | . 28 13 5 3 Critical Kills . | . . . . . Critical Parts Destroyed . | . . . . . Critical Strikes . | . . . . . Melee Attacks . | . . . . . Impact . | . . . . . Slashing . | . . . . . Piercing . | . . . . . Sneak Attacks . | . . . . . Combat Hostiles . | . . . . . Follow-up Attacks . | . . . . . Damage Inflicted 1738 | . 1048 337 244 109 Guns 374 | . 236 138 . . Cannons 419 | . 359 . 34 26 Explosions 945 | . 453 199 210 83 Melee . | . . . . . Ramming . | . . . . . Kinetic 501 | . 391 50 34 26 Thermal 292 | . 204 88 . . Explosive 945 | . 453 199 210 83 Electromagnetic . | . . . . . Impact . | . . . . . Slashing . | . . . . . Piercing . | . . . . . Highest Corruption 6 | . 6 6 6 6 Average Corruption 5 | . 2 6 6 6 Corruption Purged . | . . . . . Corruption Blocked . | . . . . . Effects 76 | . 5 28 41 2 Message Errors 14 | . 1 5 7 1 Matter Fused 21 | . . 7 14 . Heat Flow Errors 11 | . 1 4 6 . Energy Discharges 9 | . . 5 4 . Parts Fused 2 | . . 1 1 . Data Loss (minor) 7 | . 2 2 3 . Data Loss (major) 9 | . 1 4 4 . Misfires 2 | . . . 1 1 Alerts 1 | . . . 1 . Overload Shots . | . . . . . Overflow Damage 51 | . 31 20 . . Projectiles 7 | . 7 . . . Explosions 44 | . 24 20 . . Melee . | . . . . . Knockbacks 6 | . 5 . 1 . Impact . | . . . . . Kinetic 5 | . 4 . 1 . Secondary 1 | . 1 . . . Self-Inflicted Damage 224 | . 88 104 . 32 Shots 8 | . 4 3 . 1 Rammed . | . . . . . Targets Rammed 1 | . 1 . . . Kicked . | . . . . . Crushed 1 | . 1 . . . Highest Temperature 269 | . 147 269 211 18 Average Temperature 71 | . 54 103 81 10 Received Heat Transfer 261 | . 135 126 . . Siege Activations . | . . . . . Robots Corrupted . | . . . . . Combat Hostiles . | . . . . . Parts Fried . | . . . . . Impact Corruptions . | . . . . . Robots Melted . | . . . . . Combat Hostiles . | . . . . . Parts Melted . | . . . . . Heat Transferred 675 | . 475 200 . . Parts Sabotaged . | . . . . . Parts Stolen . | . . . . . Parts Stripped . | . . . . . Power Chain Reactions . | . . . . . Alert | -11 -10 -10 -10 -9 ------- Run | Yrd Mat Min Exi Min Peak Influence 245 | . 245 148 . 5 Initial . | . . . . . Average 63 | . 110 61 . 2 Maximum Alert Level 1 | . 1 . . . Low Security (%) 96 | 100 91 100 . 100 Level 1 3 | . 8 . . . Level 2 . | . . . . . Level 3 . | . . . . . Level 4 . | . . . . . Level 5 . | . . . . . High Security . | . . . . . Max Security . | . . . . . Squads Dispatched 5 | . 5 . . . Investigation 1 | . 1 . . . Extermination . | . . . . . Reinforcement 4 | . 4 . . . Assault . | . . . . . Garrison . | . . . . . Intercept . | . . . . . Searches Triggered . | . . . . . Construction Impeded . | . . . . . Haulers Reinforced . | . . . . . Active Scanning Responses . | . . . . . Cargo Convoy Interrupts . | . . . . . Stealth | -11 -10 -10 -10 -9 --------- Run | Yrd Mat Min Exi Min Distress Signals 1 | . 1 . . . Communications Jammed . | . . . . . Distress Signals . | . . . . . Times Spotted 25 | . 18 7 . . Peak Tracking Total 4 | . 4 2 . . Tactical Retreats . | . . . . . Traps | -11 -10 -10 -10 -9 ------- Run | Yrd Mat Min Exi Min Traps Triggered 7 | . 6 1 . . Indirectly . | . . . . . Trap Hack Attempts . | . . . . . Triggered . | . . . . . Disarmed . | . . . . . Reprogrammed . | . . . . . Reused . | . . . . . Traps Extracted . | . . . . . Installed . | . . . . . Triggered . | . . . . . Most Traps Carried 1 | . . 1 . . Machines | -11 -10 -10 -10 -9 ---------- Run | Yrd Mat Min Exi Min Machines Disabled 1 | . 1 . . . Max in Single Turn 1 | . 1 . . . Machines Repaired . | . . . . . Machines Dismantled . | . . . . . Machines Sabotaged . | . . . . . Overloaded Fab Kills . | . . . . . Hacking | -11 -10 -10 -10 -9 --------- Run | Yrd Mat Min Exi Min Machines Accessed 1 | . . 1 . . Terminals . | . . . . . Fabricators . | . . . . . Repair Stations . | . . . . . Recycling Units . | . . . . . Scanalyzers . | . . . . . Garrison Access . | . . . . . Total Hacks 1 | . . 1 . . Successful 1 | . . 1 . . Failed . | . . . . . Catastrophic . | . . . . . Database Lockouts . | . . . . . Manual . | . . . . . Terminals . | . . . . . Fabricators . | . . . . . Repair Stations . | . . . . . Recycling Units . | . . . . . Scanalyzers . | . . . . . Garrison Access . | . . . . . Terminal Hacks 1 | . . 1 . . Open Door 1 | . . 1 . . Fabricator Hacks . | . . . . . Repair Station Hacks . | . . . . . Recycling Unit Hacks . | . . . . . Scanalyzer . | . . . . . Garrison Access Hacks . | . . . . . Unauthorized Hacks . | . . . . . Terminals . | . . . . . Fabricators . | . . . . . Repair Stations . | . . . . . Recycling Units . | . . . . . Scanalyzers . | . . . . . Garrison Access . | . . . . . Data Cores Recovered . | . . . . . Used . | . . . . . Hacking Detections . | . . . . . Full Trace Events . | . . . . . Feedback Events . | . . . . . Feedback Blocked . | . . . . . Robot Schematics Acquired . | . . . . . Robots Built . | . . . . . Authchips . | . . . . . Time . | . . . . . Total Robot Build Rating . | . . . . . Part Schematics Acquired . | . . . . . Parts Built . | . . . . . Authchips . | . . . . . Time . | . . . . . Total Part Build Rating . | . . . . . Parts Repaired . | . . . . . Time . | . . . . . Parts Recycled . | . . . . . Recycled Matter . | . . . . . Retrieved Matter . | . . . . . Retrieved Components . | . . . . . Parts Scanalyzed . | . . . . . Part Schematics Acquired . | . . . . . Parts Damaged . | . . . . . Bothacking | -11 -10 -10 -10 -9 ------------ Run | Yrd Mat Min Exi Min Used RIF Installer . | . . . . . Robots Hacked . | . . . . . Non-combat . | . . . . . Combat . | . . . . . Robot Hacks Applied . | . . . . . Relay Couplers Released . | . . . . . Fabnet Peak Effective % . | . . . . . Robots Rewired 1 | . . . 1 . Allies Hacked . | . . . . . Hacks Repelled . | . . . . . Allies | -11 -10 -10 -10 -9 -------- Run | Yrd Mat Min Exi Min Total Allies 1 | . . . 1 . Largest Group 1 | . . . 1 1 Highest-Rated Group 8 | . . . 8 8 Highest-Rated Ally 8 | . . . 8 8 Total Orders 3 | . . . 2 1 ROAM 1 | . . . 1 . FOLLOW 1 | . . . 1 . GUARD 1 | . . . . 1 Ally Attacks . | . . . . . Total Damage . | . . . . . Kills . | . . . . . Allies Corrupted . | . . . . . Allies Melted . | . . . . . Intel | -11 -10 -10 -10 -9 ------- Run | Yrd Mat Min Exi Min Robot Analysis Total . | . . . . . Derelict Logs Recovered 2 | . . 2 . . Drone Launches . | . . . . . Drone Recoveries . | . . . . . Exploration | -11 -10 -10 -10 -9 ------------- Run | Yrd Mat Min Exi Min Turns Passed 4633 | 800 1215 885 1653 80 Spaces Moved 2216 | 79 649 515 909 64 Core 13 | 13 . . . . Treads 1563 | 66 649 515 333 . Legs 640 | . . . 576 64 Wheels . | . . . . . Hover . | . . . . . Flight . | . . . . . Fastest Speed 50 | 50 160 160 160 120 Average Speed 165 | 141 160 160 179 120 Slowest Speed 190 | 160 160 160 190 120 Overloaded Moves . | . . . . . Propulsion Burnouts . | . . . . . Robots Hopped . | . . . . . Cave-ins Triggered . | . . . . . Exploration Rate (%) 60 | 13 93 85 92 18 Regions Visited 4 Branch Regions 3 Pre-discovered Areas . | . . . . . Known Exits Taken . | . . . . . Unknown Exits Taken 4 | 1 1 1 1 . Scrap Searched 3 | . . 3 . . Spaces Dug . | . . . . . Terrain Destroyed 124 | . 32 51 31 10 Melee . | . . . . . Projectile . | . . . . . AOE 124 | . 32 51 31 10 Terrain Rammed . | . . . . . Walls Destroyed . | . . . . . Machines Disabled . | . . . . . Actions | -11 -10 -10 -10 -9 --------- Run | Yrd Mat Min Exi Min Total 3043 | 767 727 551 931 67 Wait 682 | 677 1 2 2 . Move 2212 | 78 648 514 908 64 Hop . | . . . . . Pick Up 30 | 8 12 8 1 1 Fast Attach . | . . . . . Attach 14 | 4 5 3 2 . Detach 1 | . 1 . . . Swap 12 | . 4 6 1 1 Drop 13 | . 4 5 4 . Fire 68 | . 51 13 3 1 Melee . | . . . . . Ram . | . . . . . Kick . | . . . . . Crush 1 | . 1 . . . Escape Stasis . | . . . . . Rewire 10 | . . . 10 . Trap . | . . . . . Miscellaneous . | . . . . . Route ------- -11/Scrapyard -10/Materials (discovered 4 exits: [*Mat x2] / *Min x2) -10/Mines (discovered 2 exits: [*Mat] / *Exi) -10/Exiles (discovered 2 exits: [*Min x2]) -9/Mines History --------- Turn | Location | Event 7 | -11/Scrapyard | Discovered new exit (range 14) 801 | -11/Scrapyard | Entered Materials 802 | -10/Materials | Build established: Mutant 1194 | -10/Materials | Discovered new exit (range 16) 1333 | -10/Materials | Discovered new exit (range 15) 1667 | -10/Materials | Discovered new exit (range 14) 1955 | -10/Materials | Discovered new exit (range 15) 2016 | -10/Materials | Entered Mines 2048 | -10/Mines | Learned 4 Materials zone layouts 2078 | -10/Mines | Core integrity fell below 50% 2095 | -10/Mines | Core integrity fell below 20% 2257 | -10/Mines | Deemed a non-threat by the Exiles lab entrance 2257 | -10/Mines | Discovered new exit (range 6) 2352 | -10/Mines | Found a hidden stash of uninstalled traps 2447 | -10/Mines | Received a Rocket Launcher from a helpful Derelict 2549 | -10/Mines | Learned Materials trap positions 2552 | -10/Mines | Discovered new exit (range 10) 2610 | -10/Mines | Met a Derelict who couldn't figure out how to use a Trap Extractor 2901 | -10/Mines | Entered Exiles 2901 | -10/Exiles | Found Exiles lab destroyed 2930 | -10/Exiles | Discovered new exit (range 15) 3620 | -10/Exiles | Discovered new exit (range 12) 4554 | -10/Exiles | Entered Mines 4554 | -9/Mines | Accompanied by 1 ally 4634 | -9/Mines | Destroyed self with Rocket Launcher Last Messages --------------- 04389_ Acquired 31 matter. 04398_ System corrupted: Substantial component data lost. 04418_ H95B:GRQDPRYJUQJSY:HMH 04448_ System corrupted: Substantial component data lost. 04464_ System corrupted: Component data lost. 04486_ 2A8=JP9N5QIVF2BV GQPIJQL 04543_ System corrupted: Matter fused (-6). LOCATION=UNKNOWN GOAL=ESCAPE 04591_ System corrupted: FCS attempts to trigger Flak Cannon. 04591_ System corrupted: Flak Cannon misfires. 04591_ T-07 Excavator destroyed. 04596_ Acquired 14 matter. 04598_ Acquired Imp. Terrain Scanner. 04615_ >S|=U/Q 7U:E%YHN/:WEKFOUZD## 04630_ Mercenary 1a destroyed. 04634_ B-36 Bruiser destroyed. Map ----- +----------------------------------------------------+ | ?????????## ###### ####????? | | ??????????###?????# ##???????? | | ??????????????????## #????????? | | ???????????????????### ######???? | | ?????????????????????## ## ##??? | | ??????????????????????# #??? | | ??????????????????????# #??? | | ??????????????????????## #??? | | ???????????????????????###### #??? | | ????????????????????????????# #??? | | ????????????????????????????# #??? | | ????????????????????????????# #??? | | ????????????????????????????# #??? | | ????????????????????????????# #??? | | ????????????????????###?????# #??? | | ???????????????????## #????#t #??? | | ???????????????#???# #???# #??? | | ???????????????# ??# #### #??? | | ???????????????# ## #??? | | ?????????????### #??? | | ???????????? ##??? | | ???????????????###### #???? | | ?????????????# ###### ##???? | | ?????????????# %[ ##????? | | ???????????????###### #?????? | | ????????????????????## @ ##?????? | | ????????????????????# ##??????? | | ???????????????????# ##???????? | | ????????????????? * ?????????? | | ??????????????? ### %= ?????????? | | ????????????? ????## g ?????????? | | ???????????? ???????## ??????????? | | ?????????????????????# ??????????? | | ?????????????????????###??????????? | | ??????????????????????????????????? | | ??????????????????????????????????? | | ??????????????????????????????????? | | ??????????????????????????????????? | | ??????????????????????????????????? | | ??????????????????????????????????? | | ??????????????????????????????????? | | ??????????????????????????????????? | | ??????????????????????????????????? | | ??????????????????????????????????? | | ??????????????????????????????????? | | ??????????????????????????????????? | | ??????????????????????????????????? | | ??????????????????????????????????? | | ??????????????????????????????????? | | ??????????????????????????????????? | +----------------------------------------------------+ Best States ------------- Heat Dissipation 25 Energy Generation 15 Energy Capacity 265 Matter Stores 300 Matter Capacity 300 Sight Range 16 Terrain Scan Density 10 Armor Coverage 225 Core Shielding 20 Power Shielding 33 Evasion (%) 55 Recoil Reduction 2 Trap Extractor Capacity 6 Item Schematics ----------------- None Robot Schematics ------------------ None Fabricated ------------ Nothing Alien Tech Used ----------------- None Achievements -------------- A New Friend Maybe Next Time I'll Detach My Launcher Challenges ------------ None Game ------ Seed GuidedGrenadeFlail Manual? 0 Play Time 00:30:40 Cumulative 4.4 hours Start 2024.04.28 @ 21:34:06 End 2024.04.28 @ 22:06:52 Sessions 1 Manual Loads 0 Difficulty Rogue Special Mode None Game No. 8 Rogue 8 Adventurer 0 Explorer 0 Win Type - Total 0 Types 0/0/0/0/0/0/0/0/0 Lore% 7 Gallery% 9 Achievement% 10 Wizard Run 0 Options --------- Layout 1 ASCII 0 Keyboard 0 Movement Numpad Keybinds 0 Fullscreen 1 Font 24/Smallcaps Map View 50x35 Zoom Use 0% Tactical HUD 1 Map Filters NONE Filters NONE Steam 1 RUN: dcec13f6-cfa3-43be-a4f2-1ee782e6d922